bitfinex/quotes_SOLUSD_20241111
["timestamp","ask_amount","ask_price","bid_price","bid_amount"]
[1731299601045,0.1,207.69,207.55,20.0]
[1731299601046,23.776884,207.67,207.55,42.29542493]
[1731299601226,22.29542493,207.62,207.55,42.29542493]
[1731299601646,23.776884,207.67,207.55,42.29542493]
[1731299601826,22.29542493,207.62,207.55,42.29542493]
[1731299602030,22.29542493,207.61,207.55,42.29542493]
[1731299602650,22.29542493,207.62,207.55,42.29542493]
[1731299603235,22.29542493,207.63,207.56,22.29542493]
[1731299603535,22.29542493,207.63,207.57,20.0]
[1731299604753,22.29542493,207.6,207.54,20.0]
[1731299605552,23.776884,207.67,207.55,22.29542493]
[1731299605733,22.29542493,207.62,207.56,20.0]
[1731299606251,4.8155,207.66,207.55,20.0]
[1731299606252,22.29542493,207.61,207.55,20.0]
[1731299606439,22.29542493,207.59,207.52,22.29542493]
[1731299606638,22.29542493,207.59,207.53,20.0]
[1731299607246,22.29542493,207.6,207.53,22.29542493]
[1731299607735,22.29542493,207.61,207.55,20.0]
[1731299608037,22.29542493,207.62,207.55,42.29542493]
[1731299608238,22.29542493,207.61,207.55,20.0]
[1731299608732,22.29542493,207.61,207.54,13.91260545]
[1731299608733,13.91260545,207.61,207.54,13.91260545]
[1731299609156,13.91260545,207.61,207.55,20.0]
[1731299609937,13.91260545,207.62,207.55,13.91260545]
[1731299610138,13.91260545,207.62,207.56,20.0]
[1731299610449,13.91260545,207.61,207.56,20.0]
[1731299610658,13.91260545,207.62,207.56,20.0]
[1731299612958,13.91260545,207.63,207.56,13.91260545]
[1731299613158,13.91260545,207.63,207.57,20.0]
[1731299613958,23.776884,207.68,207.57,20.0]
[1731299614150,23.776884,207.68,207.57,33.91260545]
[1731299614340,13.91260545,207.64,207.57,33.91260545]
[1731299614737,13.91260545,207.63,207.56,13.91260545]
[1731299614961,23.776884,207.68,207.55,20.0]
[1731299615255,13.91260545,207.59,207.55,20.0]
[1731299615457,13.91260545,207.6,207.55,20.0]
[1731299615660,13.91260545,207.6,207.54,20.0]
[1731299616452,13.91260545,207.59,207.54,20.0]
[1731299616657,13.91260545,207.59,207.53,20.0]
[1731299616854,13.91260545,207.6,207.53,13.91260545]
[1731299617036,4.8156,207.66,207.56,20.0]
[1731299617360,13.91260545,207.63,207.57,13.91260545]
[1731299617864,13.91260545,207.63,207.58,20.0]
[1731299618860,23.776884,207.68,207.58,20.0]
[1731299618861,13.91260545,207.65,207.58,33.91260545]
[1731299619162,13.91260545,207.66,207.6,20.0]
[1731299619367,13.91260545,207.65,207.6,20.0]
[1731299619567,13.91260545,207.65,207.59,20.0]
[1731299620064,12.1343,207.74,207.58,20.18580545]
[1731299620065,13.91260545,207.67,207.61,20.0]
[1731299620662,13.91260545,207.66,207.61,20.0]
[1731299621261,13.91260545,207.67,207.61,20.0]
[1731299621553,13.91260545,207.66,207.61,20.0]
[1731299621757,13.91260545,207.64,207.59,20.0]
[1731299621939,13.91260545,207.65,207.59,20.0]
[1731299622141,13.91260545,207.66,207.59,33.91260545]
[1731299622342,13.91260545,207.67,207.6,13.91260545]
[1731299622561,13.91260545,207.66,207.59,33.91260545]
[1731299622943,13.91260545,207.65,207.59,20.0]
[1731299623851,13.91260545,207.66,207.59,33.91260545]
[1731299624563,13.91260545,207.64,207.59,20.0]
[1731299625263,13.91260545,207.66,207.59,33.91260545]
[1731299625463,13.91260545,207.67,207.61,20.0]
[1731299625759,13.91260545,207.66,207.61,20.0]
[1731299626162,13.91260545,207.66,207.6,20.0]
[1731299626366,13.91260545,207.67,207.6,20.0]
[1731299627045,13.91260545,207.68,207.61,13.91260545]
[1731299627249,13.91260545,207.69,207.62,33.91260545]
[1731299627568,13.91260545,207.7,207.64,20.0]
[1731299629947,13.91260545,207.69,207.62,13.91260545]
[1731299630143,13.91260545,207.7,207.63,33.91260545]
[1731299630361,13.91260545,207.72,207.65,33.91260545]
[1731299630570,13.91260545,207.73,207.67,20.0]
[1731299630869,13.91260545,207.72,207.67,20.0]
[1731299631046,13.91260545,207.72,207.66,20.0]
[1731299631664,26.04350545,207.8,207.65,13.91260545]
[1731299631665,13.91260545,207.71,207.65,20.0]
[1731299631972,13.91260545,207.72,207.65,33.91260545]
[1731299632357,13.91260545,207.71,207.65,20.0]
[1731299634165,4.8125,207.79,207.67,33.91260545]
[1731299634468,4.8125,207.79,207.68,13.91260545]
[1731299634469,13.91260545,207.75,207.68,13.91260545]
[1731299634657,13.91260545,207.75,207.69,20.0]
[1731299634858,13.91260545,207.74,207.67,39.96550545]
[1731299635755,13.91260545,207.75,207.68,13.91260545]
[1731299635955,13.91260545,207.75,207.69,20.0]
[1731299636259,13.91260545,207.76,207.69,33.91260545]
[1731299636452,13.91260545,207.75,207.68,33.91260545]
[1731299637650,13.91260545,207.76,207.69,13.91260545]
[1731299637965,13.91260545,207.76,207.7,20.0]
[1731299638752,13.91260545,207.74,207.68,20.0]
[1731299638964,13.91260545,207.75,207.68,33.91260545]
[1731299639270,13.91260545,207.75,207.67,6.0529]
[1731299639271,13.91260545,207.76,207.7,20.0]
[1731299639477,13.91260545,207.8,207.73,13.91260545]
[1731299640059,13.91260545,207.8,207.74,20.0]
[1731299640454,13.91260545,207.77,207.71,29.48610545]
[1731299640661,13.91260545,207.76,207.72,20.0]
[1731299640865,13.91260545,207.75,207.72,20.0]
[1731299641062,13.91260545,207.77,207.72,20.0]
[1731299641674,13.91260545,207.79,207.72,33.91260545]
[1731299642056,13.91260545,207.81,207.75,20.0]
[1731299642369,13.91260545,207.8,207.75,20.0]
[1731299642556,13.91260545,207.78,207.72,20.0]
[1731299642956,13.91260545,207.79,207.72,33.91260545]
[1731299643173,13.91260545,207.8,207.74,13.91260545]
[1731299643373,13.91260545,207.81,207.75,20.0]
[1731299643769,13.91260545,207.78,207.72,20.0]
[1731299643981,13.91260545,207.77,207.73,20.0]
[1731299644675,13.91260545,207.77,207.72,20.0]
[1731299644877,13.91260545,207.75,207.72,20.0]
[1731299645375,13.91260545,207.76,207.72,20.0]
[1731299646385,13.91260545,207.75,207.71,15.5735]
[1731299647176,13.91260545,207.76,207.71,15.5735]
[1731299648855,13.91260545,207.72,207.66,15.3423]
[1731299649079,13.91260545,207.71,207.66,15.3423]
[1731299649971,13.91260545,207.72,207.66,29.25490545]
[1731299650472,13.91260545,207.71,207.66,15.3423]
[1731299650672,13.91260545,207.71,207.68,20.0]
[1731299650872,13.91260545,207.72,207.68,20.0]
[1731299651267,13.91260545,207.73,207.68,20.0]
[1731299651878,13.91260545,207.69,207.62,6.6547]
[1731299652179,13.91260545,207.66,207.62,6.6547]
[1731299652384,13.91260545,207.68,207.62,6.6547]
[1731299653475,13.91260545,207.67,207.62,6.6547]
[1731299653873,13.91260545,207.64,207.61,15.0414]
[1731299654565,13.91260545,207.66,207.61,15.0414]
[1731299655393,13.91260545,207.63,207.58,20.0]
[1731299656180,13.91260545,207.64,207.58,20.0]
[1731299658485,13.91260545,207.65,207.58,33.91260545]
[1731299658685,13.91260545,207.64,207.58,20.0]
[1731299659092,13.91260545,207.65,207.58,33.91260545]
[1731299659691,13.91260545,207.64,207.58,20.0]
[1731299660366,13.91260545,207.61,207.57,6.166]
[1731299660683,13.91260545,207.6,207.56,15.0193]
[1731299660883,13.91260545,207.62,207.56,15.0193]
[1731299661069,13.91260545,207.63,207.56,28.93190545]
[1731299661273,13.91260545,207.66,207.59,13.91260545]
[1731299661681,13.91260545,207.65,207.59,13.91260545]
[1731299661884,13.91260545,207.65,207.58,13.91260545]
[1731299662193,13.91260545,207.65,207.59,20.0]
[1731299662369,12.1349,207.73,207.62,13.91260545]
[1731299662370,13.91260545,207.69,207.62,13.91260545]
[1731299662684,13.91260545,207.72,207.65,13.91260545]
[1731299663070,13.91260545,207.73,207.66,13.91260545]
[1731299663386,13.91260545,207.74,207.67,13.91260545]
[1731299663609,13.91260545,207.72,207.65,16.4117]
[1731299663767,13.91260545,207.68,207.65,16.4117]
[1731299664095,13.91260545,207.68,207.61,33.91260545]
[1731299664384,13.91260545,207.65,207.6,23.0486]
[1731299664594,13.91260545,207.66,207.6,23.0486]
[1731299664894,13.91260545,207.64,207.6,16.4117]
[1731299665982,13.91260545,207.63,207.56,13.91260545]
[1731299666988,4.8156,207.66,207.55,23.0486]
[1731299666989,13.91260545,207.64,207.57,13.91260545]
[1731299667309,13.91260545,207.63,207.56,20.0]
[1731299667479,13.91260545,207.63,207.56,33.91260545]
[1731299667690,13.91260545,207.64,207.57,13.91260545]
[1731299668391,13.91260545,207.63,207.56,33.91260545]
[1731299669068,13.91260545,207.62,207.56,20.0]
[1731299669480,13.91260545,207.6,207.55,23.0486]
[1731299669882,13.91260545,207.61,207.55,23.0486]
[1731299670274,13.91260545,207.6,207.55,23.0486]
[1731299671285,13.91260545,207.59,207.55,23.0486]
[1731299671486,13.91260545,207.59,207.52,20.0]
[1731299671776,13.91260545,207.55,207.5,21.9468]
[1731299671990,13.91260545,207.54,207.5,21.9468]
[1731299672693,13.91260545,207.6,207.5,21.9468]
[1731299672694,13.91260545,207.53,207.5,15.7971]
[1731299673399,13.91260545,207.53,207.46,13.91260545]
[1731299673589,13.91260545,207.51,207.45,22.3234]
[1731299674394,13.91260545,207.55,207.48,13.91260545]
[1731299674886,13.91260545,207.54,207.46,20.0]
[1731299675079,13.91260545,207.54,207.47,13.91260545]
[1731299675688,13.91260545,207.55,207.48,13.91260545]
[1731299676383,13.91260545,207.55,207.45,22.3234]
[1731299676384,13.91260545,207.57,207.5,13.91260545]
[1731299676697,13.91260545,207.56,207.49,13.91260545]
[1731299676901,13.91260545,207.55,207.48,13.91260545]
[1731299678496,13.91260545,207.56,207.49,13.91260545]
[1731299678701,13.91260545,207.6,207.53,13.91260545]
[1731299679583,13.91260545,207.59,207.53,20.0]
[1731299680191,13.91260545,207.6,207.53,33.91260545]
[1731299680392,13.91260545,207.63,207.56,13.91260545]
[1731299680593,13.91260545,207.64,207.57,13.91260545]
[1731299680989,13.91260545,207.63,207.56,13.91260545]
[1731299682590,13.91260545,207.64,207.57,13.91260545]
[1731299682791,13.91260545,207.67,207.6,13.91260545]
[1731299683180,13.91260545,207.66,207.59,13.91260545]
[1731299683377,13.91260545,207.67,207.6,13.91260545]
[1731299684205,13.91260545,207.65,207.58,13.91260545]
[1731299684382,13.91260545,207.64,207.59,20.0]
[1731299684877,0.2,207.71,207.59,20.0]
[1731299685088,13.91260545,207.65,207.59,20.0]
[1731299685903,13.91260545,207.62,207.55,13.91260545]
[1731299689697,4.816,207.64,207.54,33.91260545]
[1731299689698,13.91260545,207.61,207.54,33.91260545]
[1731299694813,4.8163,207.63,207.4,110.14841029]
[1731299694814,13.91260545,207.55,207.49,29.38150545]
[1731299695010,13.91260545,207.54,207.49,15.4689]
[1731299695395,13.91260545,207.55,207.49,15.4689]
[1731299696306,13.91260545,207.53,207.49,15.4689]
[1731299698713,13.91260545,207.53,207.46,13.91260545]
[1731299699197,13.91260545,207.52,207.47,20.0]
[1731299699597,13.91260545,207.53,207.47,20.0]
[1731299700316,13.91260545,207.53,207.47,13.91260545]
[1731299700612,13.91260545,207.54,207.47,13.91260545]
[1731299700919,13.91260545,207.54,207.48,13.91260545]
[1731299702613,13.91260545,207.57,207.51,13.91260545]
[1731299702798,13.91260545,207.58,207.51,13.91260545]
[1731299702994,13.91260545,207.6,207.53,13.91260545]
[1731299703196,13.91260545,207.63,207.57,13.91260545]
[1731299703401,13.91260545,207.64,207.58,13.91260545]
[1731299703696,13.91260545,207.66,207.59,13.91260545]
[1731299703898,13.91260545,207.67,207.61,13.91260545]
[1731299704507,13.91260545,207.71,207.65,13.91260545]
[1731299704703,13.91260545,207.76,207.69,13.91260545]
[1731299705097,13.91260545,207.77,207.71,13.91260545]
[1731299705410,13.91260545,207.73,207.66,13.91260545]
[1731299705622,13.91260545,207.73,207.67,20.0]
[1731299705789,13.91260545,207.72,207.67,20.0]
[1731299705990,13.91260545,207.71,207.65,13.91260545]
[1731299706217,13.91260545,207.71,207.66,20.0]
[1731299706419,13.91260545,207.68,207.63,22.4532]
[1731299706798,13.91260545,207.69,207.63,22.4532]
[1731299707218,13.91260545,207.72,207.65,13.91260545]
[1731299707600,13.91260545,207.7,207.64,33.91260545]
[1731299708291,0.1,207.76,207.64,33.91260545]
[1731299708292,13.91260545,207.71,207.64,33.91260545]
[1731299708629,13.91260545,207.71,207.65,13.91260545]
[1731299708922,13.91260545,207.71,207.64,33.91260545]
[1731299709522,13.91260545,207.78,207.7,13.91260545]
[1731299709826,13.91260545,207.78,207.72,13.91260545]
[1731299710498,13.91260545,207.76,207.69,13.91260545]
[1731299710895,13.91260545,207.73,207.66,13.91260545]
[1731299711099,13.91260545,207.71,207.66,20.0]
[1731299711507,13.91260545,207.73,207.67,13.91260545]
[1731299711818,13.91260545,207.74,207.67,13.91260545]
[1731299712015,13.91260545,207.75,207.69,13.91260545]
[1731299712716,13.91260545,207.75,207.69,20.0]
[1731299712924,13.91260545,207.76,207.69,33.91260545]
[1731299713097,13.91260545,207.78,207.71,13.91260545]
[1731299713513,13.91260545,207.77,207.71,13.91260545]
[1731299713717,4.9106,207.87,207.76,13.91260545]
[1731299713919,13.91260545,207.85,207.78,13.91260545]
[1731299714104,13.91260545,207.81,207.75,13.91260545]
[1731299714519,13.91260545,207.82,207.75,13.91260545]
[1731299714913,13.91260545,207.83,207.76,13.91260545]
[1731299715817,13.91260545,207.83,207.72,22.4904]
[1731299715818,4.8115,207.84,207.75,13.91260545]
[1731299716026,13.91260545,207.8,207.73,13.91260545]
[1731299716232,13.91260545,207.77,207.72,22.4904]
[1731299716921,13.91260545,207.78,207.72,22.4904]
[1731299717309,13.91260545,207.77,207.72,22.4904]
[1731299717505,12.1276,207.86,207.7,13.91260545]
[1731299717714,13.91260545,207.79,207.72,13.91260545]
[1731299717918,13.91260545,207.78,207.71,13.91260545]
[1731299718107,13.91260545,207.77,207.7,13.91260545]
[1731299718317,13.91260545,207.76,207.69,13.91260545]
[1731299718517,13.91260545,207.77,207.7,13.91260545]
[1731299718712,13.91260545,207.76,207.69,13.91260545]
[1731299718904,4.8128,207.78,207.67,36.67290545]
[1731299718905,13.91260545,207.74,207.67,36.67290545]
[1731299719126,13.91260545,207.73,207.67,22.7603]
[1731299719632,4.9128,207.78,207.67,22.7603]
[1731299719633,13.91260545,207.72,207.67,22.7603]
[1731299720122,13.91260545,207.71,207.67,22.7603]
[1731299720316,13.91260545,207.7,207.67,22.7603]
[1731299720624,13.91260545,207.8,207.58,5.55519202]
[1731299720625,13.91260545,207.68,207.62,23.1039]
[1731299720823,4.8142,207.72,207.62,37.01650545]
[1731299720824,13.91260545,207.69,207.62,37.01650545]
[1731299721327,13.91260545,207.68,207.62,23.1039]
[1731299721530,13.91260545,207.67,207.62,23.1039]
[1731299722211,13.91260545,207.66,207.62,23.1039]
[1731299722411,13.91260545,207.67,207.62,23.1039]
[1731299722616,13.91260545,207.69,207.62,23.1039]
[1731299722821,13.91260545,207.71,207.64,13.91260545]
[1731299723128,13.91260545,207.73,207.65,33.91260545]
[1731299723328,13.91260545,207.71,207.65,20.0]
[1731299723516,13.91260545,207.73,207.65,33.91260545]
[1731299723715,13.91260545,207.73,207.65,13.91260545]
[1731299723920,13.91260545,207.71,207.65,20.0]
[1731299724324,13.91260545,207.72,207.65,33.91260545]
[1731299725615,13.91260545,207.71,207.64,13.91260545]
[1731299725820,13.91260545,207.71,207.63,33.91260545]
[1731299726020,13.91260545,207.68,207.62,23.1039]
[1731299726328,4.8136,207.75,207.62,23.1039]
[1731299726329,13.91260545,207.65,207.62,23.1039]
[1731299726516,13.91260545,207.66,207.62,23.1039]
[1731299726825,13.91260545,207.65,207.62,23.1039]
[1731299727028,13.91260545,207.65,207.57,36.14640545]
[1731299727713,13.91260545,207.65,207.58,13.91260545]
[1731299727920,13.91260545,207.65,207.57,36.14640545]
[1731299728118,13.91260545,207.61,207.57,22.2338]
[1731299728635,13.91260545,207.6,207.57,22.2338]
[1731299728816,13.91260545,207.59,207.52,36.14640545]
[1731299729012,13.91260545,207.57,207.52,22.2338]
[1731299729321,13.91260545,207.56,207.52,22.2338]
[1731299729719,13.91260545,207.54,207.47,36.14640545]
[1731299729919,37.68948945,207.55,207.48,13.91260545]
[1731299731146,37.68948945,207.55,207.49,20.0]
[1731299731334,13.91260545,207.57,207.5,13.91260545]
[1731299731517,23.776884,207.57,207.51,13.91260545]
[1731299731833,23.776884,207.57,207.48,20.0]
[1731299731834,13.91260545,207.6,207.53,13.91260545]
[1731299732032,13.91260545,207.61,207.54,13.91260545]
[1731299732738,13.91260545,207.6,207.53,13.91260545]
[1731299733028,13.91260545,207.59,207.51,13.91260545]
[1731299733236,13.91260545,207.59,207.52,20.0]
[1731299733433,13.91260545,207.56,207.49,13.91260545]
[1731299733933,37.68948945,207.53,207.47,22.2338]
[1731299734440,13.91260545,207.51,207.47,22.2338]
[1731299734941,37.68948945,207.53,207.47,22.2338]
[1731299735320,13.91260545,207.52,207.47,22.2338]
[1731299736943,13.91260545,207.51,207.47,22.2338]
[1731299737529,13.91260545,207.52,207.47,22.2338]
[1731299739239,37.68948945,207.53,207.47,22.2338]
[1731299739428,23.776884,207.53,207.47,36.14640545]
[1731299739841,18.73050545,207.56,207.49,13.91260545]
[1731299740144,13.91260545,207.58,207.51,13.91260545]
[1731299740436,18.73000545,207.59,207.53,13.91260545]
[1731299740625,22.6055,207.69,207.55,13.91260545]
[1731299740823,13.91260545,207.62,207.55,13.91260545]
[1731299741028,13.91260545,207.61,207.54,13.91260545]
[1731299741228,13.91260545,207.59,207.53,13.91260545]
[1731299741529,13.91260545,207.59,207.52,13.91260545]
[1731299741917,13.91260545,207.57,207.5,13.91260545]
[1731299742113,13.91260545,207.57,207.51,13.91260545]
[1731299742318,13.91260545,207.58,207.51,13.91260545]
[1731299742519,23.776884,207.57,207.51,13.91260545]
[1731299743924,23.776884,207.57,207.53,13.91260545]
[1731299744127,22.7055,207.69,207.54,13.91260545]
[1731299744128,23.776884,207.6,207.54,13.91260545]
[1731299744346,18.72940545,207.61,207.54,13.91260545]
[1731299744639,13.91260545,207.65,207.58,13.91260545]
[1731299744842,13.91260545,207.59,207.48,20.0]
[1731299745024,13.91260545,207.58,207.51,20.0]
[1731299745224,0.1,207.64,207.5,13.91260545]
[1731299745225,13.91260545,207.57,207.5,13.91260545]
[1731299745818,13.91260545,207.56,207.49,13.91260545]
[1731299746042,13.91260545,207.56,207.5,20.0]
[1731299746234,13.91260545,207.57,207.5,33.91260545]
[1731299747241,13.91260545,207.56,207.49,13.91260545]
[1731299747418,13.91260545,207.56,207.5,20.0]
[1731299747934,4.8172,207.59,207.49,13.91260545]
[1731299747935,13.91260545,207.55,207.49,20.0]
[1731299748239,13.91260545,207.56,207.5,33.91260545]
[1731299748427,13.91260545,207.58,207.51,13.91260545]
[1731299748831,13.91260545,207.52,207.47,22.2338]
[1731299749023,13.91260545,207.49,207.47,22.2338]
[1731299749344,13.91260545,207.54,207.47,36.14640545]
[1731299750438,13.91260545,207.56,207.49,13.91260545]
[1731299750642,13.91260545,207.56,207.47,22.2338]
[1731299750643,13.91260545,207.55,207.48,33.91260545]
[1731299752344,13.91260545,207.57,207.5,13.91260545]
[1731299752933,13.91260545,207.56,207.5,20.0]
[1731299753339,13.91260545,207.53,207.47,22.2338]
[1731299753645,13.91260545,207.52,207.47,22.2338]
[1731299754145,13.91260545,207.53,207.47,22.2338]
[1731299754735,13.91260545,207.52,207.47,22.2338]
[1731299754939,13.91260545,207.53,207.47,22.2338]
[1731299759252,12.1412,207.62,207.49,13.91260545]
[1731299759253,13.91260545,207.56,207.49,13.91260545]
[1731299760128,13.91260545,207.57,207.5,13.91260545]
[1731299760335,13.91260545,207.58,207.51,13.91260545]
[1731299760551,13.91260545,207.61,207.54,13.91260545]
[1731299761339,13.91260545,207.62,207.55,33.91260545]
[1731299761645,13.91260545,207.66,207.59,13.91260545]
[1731299762144,13.91260545,207.67,207.6,13.91260545]
[1731299762356,13.91260545,207.65,207.58,13.91260545]
[1731299762541,13.91260545,207.65,207.59,20.0]
[1731299762741,13.91260545,207.67,207.6,13.91260545]
[1731299764359,23.776884,207.68,207.56,22.7165]
[1731299764360,13.91260545,207.63,207.56,22.7165]
[1731299764563,13.91260545,207.59,207.56,22.7165]
[1731299764743,23.776884,207.68,207.58,13.91260545]
[1731299764944,23.776884,207.68,207.56,22.7165]
[1731299765464,28.591984,207.68,207.56,22.7165]
[1731299765662,28.591984,207.68,207.57,20.0]
[1731299765953,13.91260545,207.6,207.56,22.7165]
[1731299766354,13.91260545,207.61,207.56,22.7165]
[1731299766554,13.91260545,207.62,207.56,22.7165]
[1731299766946,13.91260545,207.61,207.56,22.7165]
[1731299767265,13.91260545,207.62,207.56,22.7165]
[1731299768154,20.0,207.67,207.57,13.91260545]
[1731299768354,13.91260545,207.65,207.57,13.91260545]
[1731299768557,13.91260545,207.64,207.57,13.91260545]
[1731299768862,13.91260545,207.63,207.56,36.62910545]
[1731299769767,13.91260545,207.63,207.56,22.7165]
[1731299769958,13.91260545,207.63,207.56,36.62910545]
[1731299771449,13.91260545,207.61,207.56,22.7165]
[1731299771661,13.91260545,207.6,207.56,22.7165]
[1731299771845,13.91260545,207.61,207.56,22.7165]
[1731299772249,13.91260545,207.59,207.56,16.4124]
[1731299772447,23.776884,207.6,207.51,22.5434]
[1731299772767,13.91260545,207.58,207.51,36.45600545]
[1731299772965,13.91260545,207.57,207.51,22.5434]
[1731299774875,18.73010545,207.58,207.51,36.45600545]
[1731299775380,13.91260545,207.57,207.51,22.5434]
[1731299775557,23.776884,207.6,207.46,22.5434]
[1731299775558,13.91260545,207.52,207.46,22.5434]
[1731299776371,0.1,207.67,207.51,13.91260545]
[1731299776553,13.91260545,207.63,207.55,13.91260545]
[1731299776756,13.91260545,207.63,207.55,29.20400545]
[1731299777967,13.91260545,207.57,207.5,13.91260545]
[1731299778163,13.91260545,207.55,207.49,15.2914]
[1731299778468,13.91260545,207.56,207.49,29.20400545]
[1731299778769,23.776884,207.55,207.49,29.20400545]
[1731299778972,37.68948945,207.55,207.49,15.2914]
[1731299779183,42.50758945,207.55,207.49,15.2914]
[1731299779470,42.50758945,207.55,207.44,15.2914]
[1731299779471,13.91260545,207.5,207.44,15.2914]
[1731299779673,13.91260545,207.48,207.44,15.2914]
[1731299780055,13.91260545,207.5,207.44,15.2914]
[1731299785073,13.91260545,207.46,207.44,15.2914]
[1731299785268,13.91260545,207.49,207.44,15.2914]
[1731299785771,13.91260545,207.5,207.44,15.2914]
[1731299785970,37.68948945,207.51,207.44,29.20400545]
[1731299786761,37.68948945,207.51,207.45,13.91260545]
[1731299787362,4.8185,207.54,207.48,13.91260545]
[1731299787363,13.91260545,207.54,207.48,13.91260545]
[1731299787676,24.0833,207.62,207.44,15.2914]
[1731299787677,13.91260545,207.56,207.49,13.91260545]
[1731299787880,13.91260545,207.59,207.52,13.91260545]
[1731299788182,13.91260545,207.6,207.53,13.91260545]
[1731299788555,13.91260545,207.59,207.52,13.91260545]
[1731299789274,18.72980545,207.59,207.52,13.91260545]
[1731299789483,16.3664,207.67,207.54,13.91260545]
[1731299789484,13.91260545,207.61,207.54,13.91260545]
[1731299789661,13.91260545,207.63,207.56,13.91260545]
[1731299790054,13.91260545,207.6,207.53,13.91260545]
[1731299790260,13.91260545,207.59,207.52,33.91260545]
[1731299790463,13.91260545,207.6,207.53,13.91260545]
[1731299790678,18.72940545,207.61,207.54,13.91260545]
[1731299790978,18.72940545,207.61,207.53,13.91260545]
[1731299791686,13.91260545,207.6,207.53,13.91260545]
[1731299791860,13.91260545,207.59,207.52,33.91260545]
[1731299792480,13.91260545,207.62,207.55,13.91260545]
[1731299792862,13.91260545,207.63,207.56,13.91260545]
[1731299793058,13.91260545,207.67,207.59,13.91260545]
[1731299793265,13.91260545,207.68,207.61,13.91260545]
[1731299793469,13.91260545,207.71,207.61,15.4876]
[1731299793664,18.72670545,207.72,207.65,13.91260545]
[1731299793876,13.91260545,207.73,207.66,13.91260545]
[1731299794080,18.72590545,207.76,207.68,13.91260545]
[1731299794284,0.1,207.85,207.61,15.4876]
[1731299794285,4.8124,207.8,207.73,13.91260545]
[1731299794462,18.72500545,207.8,207.73,13.91260545]
[1731299794667,13.91260545,207.81,207.74,13.91260545]
[1731299795188,13.91260545,207.8,207.73,13.91260545]
[1731299795385,13.91260545,207.8,207.72,20.44630545]
[1731299795564,13.91260545,207.81,207.74,13.91260545]
[1731299795759,13.91260545,207.83,207.76,13.91260545]
[1731299796372,4.8104,207.88,207.76,13.91260545]
[1731299796573,13.91260545,207.84,207.77,13.91260545]
[1731299796966,13.91260545,207.83,207.76,13.91260545]
[1731299797683,13.91260545,207.82,207.75,30.40890545]
[1731299797860,13.91260545,207.81,207.75,16.4963]
[1731299799387,13.91260545,207.78,207.72,6.5337]
[1731299799981,13.91260545,207.79,207.72,20.44630545]
[1731299800386,13.91260545,207.8,207.73,13.91260545]
[1731299801180,26.03770545,207.9,207.68,16.4963]
[1731299801181,26.13770545,207.9,207.74,13.91260545]
[1731299801384,13.91260545,207.83,207.76,13.91260545]
[1731299802786,13.91260545,207.82,207.75,13.91260545]
[1731299802989,13.91260545,207.83,207.76,13.91260545]
[1731299803291,18.72360545,207.86,207.79,13.91260545]
[1731299803690,13.91260545,207.86,207.79,13.91260545]
[1731299803893,13.91260545,207.89,207.82,13.91260545]
[1731299804190,13.91260545,207.88,207.81,13.91260545]
[1731299804386,13.91260545,207.87,207.8,13.91260545]
[1731299804767,13.91260545,207.85,207.78,13.91260545]
[1731299805088,13.91260545,207.81,207.74,33.91260545]
[1731299805384,13.91260545,207.82,207.74,33.91260545]
[1731299805592,13.91260545,207.82,207.75,13.91260545]
[1731299805784,13.91260545,207.82,207.8,205.41580433]
[1731299806972,13.91260545,207.83,207.8,205.41580433]
[1731299807482,13.91260545,207.82,207.8,205.41580433]
[1731299807685,13.91260545,207.83,207.8,205.41580433]
[1731299807892,13.91260545,207.82,207.8,205.41580433]
[1731299808269,13.91260545,207.85,207.8,205.41580433]
[1731299808483,13.91260545,207.87,207.8,219.32840978]
[1731299808688,13.91260545,207.85,207.8,205.41580433]
[1731299809491,13.91260545,207.82,207.8,205.41580433]
[1731299810176,13.91260545,207.83,207.8,205.41580433]
[1731299810371,13.91260545,207.82,207.8,205.41580433]
[1731299810598,13.91260545,207.81,207.8,205.41580433]
[1731299811498,13.91260545,207.82,207.8,205.41580433]
[1731299811681,13.91260545,207.81,207.8,205.41580433]
[1731299814094,4.8115,207.84,207.8,205.41580433]
[1731299814295,13.91260545,207.85,207.8,205.41580433]
[1731299814593,13.91260545,207.84,207.8,205.41580433]
[1731299815084,18.72380545,207.85,207.8,205.41580433]
[1731299815886,13.91260545,207.83,207.8,205.41580433]
[1731299816593,13.91260545,207.85,207.8,205.41580433]
[1731299816896,13.91260545,207.87,207.8,219.32840978]
[1731299817699,18.72280545,207.89,207.82,13.91260545]
[1731299817895,18.72250545,207.91,207.84,13.91260545]
[1731299818582,13.91260545,207.9,207.83,13.91260545]